[Event "POR-ch Women Absolute 2019"]
[Site "Portimao"]
[Date "2019.09.09"]
[Round "3.4"]
[White "Duque, Raquel Dos Santos"]
[Black "Monteiro, Sara Cristina da Sil"]
[Result "0-1"]
[ECO "A22"]
[WhiteElo "1415"]
[BlackElo "1728"]
[Annotator "NA RC"]
[PlyCount "88"]
[EventDate "2019.09.08"]
[EventType "swiss"]
[EventCountry "POR"]
[SourceTitle "playchess.com"]
[Source "ChessBase"]
[SourceQuality "1"]
[TimeControl "5400+30"]

1. c4 {[%emt 0:00:00]} Nf6 {[%emt 0:00:00]} 2. Nc3 {[%emt 0:00:00]} e5 {[%emt 0:00:13]} 3. g3 {[%emt 0:00:00]} Nc6 {[%emt 0:01:46]} 4. Bg2 {[%emt 0:00:35]} a6 {[%emt 0:01:39]} 5. e3 {[%emt 0:00:37]} Bc5 {[%emt 0:01:51]} 6. Nge2 {[%emt 0:00:29]} d6 {[%emt 0:01:17]} 7. O-O {[%emt 0:01:00]} O-O {[%emt 0:02:59]} 8. a3 {[%emt 0:01:19]} a5 {[%emt 0:01:24]} 9. d4 {[%emt 0:01:06]} Bb6 {[%emt 0:01:11]} 10. b3 {[%emt 0:02:44]} Bg4 {[%emt 0:01:33]} 11. Qd2 {[%emt 0:01:32]} Rb8 {[%emt 0:01:30]} 12. Bb2 {[%emt 0:02:21]} Re8 {[%emt 0:04:33]} 13. Rac1 {[%emt 0:01:36]} Qd7 {[%emt 0:03:49]} 14. Rfe1 {[%emt 0:01:56]} Qf5 {[%emt 0:06:31]} 15. Nd5 {[%emt 0:07:22]} Ne4 {[%emt 0:05:15]} 16. Bxe4 {[%emt 0:07:44]} Qxe4 {[%emt 0:00:07]} 17. dxe5 {[%emt 0:00:12]} Nxe5 {[%emt 0:06:06]} 18. Bxe5 {[%emt 0:01:30]} dxe5 {[%emt 0:00:09]} 19. Qc2 {[%emt 0:00:18]} Qf3 {[%emt 0:01:34]} 20. Nec3 {[%emt 0:00:26]} e4 {[%emt 0:12:44]} 21. Qe2 {[%emt 0:05:34]} Qf5 {[%emt 0:00:19]} 22. Qf1 {[%emt 0:00:11]} Bf3 {[%emt 0:03:18]} 23. Nxb6 {[%emt 0:02:42]} cxb6 {[%emt 0:00:13]} 24. Nd5 {[%emt 0:00:06]} Re6 {[%emt 0:03:10]} 25. Rc2 {[%emt 0:03:22]} Kf8 {[%emt 0:00:07]} 26. Rd2 {[%emt 0:00:57]} Rh6 {[%emt 0:00:21]} 27. Nf4 {[%emt 0:00:17]} g5 {[%emt 0:00:25]} 28. Ne2 {[%emt 0:01:04]} g4 {[%emt 0:12:13]} 29. Rd5 {[%emt 0:03:00]} Qf6 {[%emt 0:02:04]} 30. Nf4 {[%emt 0:03:52]} Qb2 {[%emt 0:06:52]} 31. c5 {[%emt 0:06:50]} Qxa3 {[%emt 0:04:39]} 32. cxb6 {[%emt 0:02:32]} Rxb6 {[%emt 0:02:18]} 33. Qc4 {[%emt 0:01:21]} Qb4 {[%emt 0:04:32]} 34. Qxb4+ {[%emt 0:03:09]} Rxb4 {[%emt 0:00:21]} 35. Rxa5 {[%emt 0:00:18]} Rxb3 {[%emt 0:00:22]} 36. h3 {[%emt 0:00:32]} b5 {[%emt 0:00:34]} 37. Rea1 {[%emt 0:01:20]} b4 {[%emt 0:00:47]} 38. Rh5 {[%emt 0:04:06]} Ra3 {[%emt 0:02:34]} 39. Rb1 {[%emt 0:00:56]} b3 {[%emt 0:00:25]} 40. Nd5 {[%emt 0:04:27]} b2 {[%emt 0:01:59]} 41. Rxh7 {[%emt 0:00:09]} Ra1 {[%emt 0:00:52]} 42. Nc3 {[%emt 0:00:36]} Rxb1+ {[%emt 0:01:24]} 43. Nxb1 {[%emt 0:00:07]} Kg8 {[%emt 0:00:05]} 44. Rh5 {[%emt 0:00:23]} Rc8 {[%emt 0:00:24]} 0-1

[Event "POR-ch Women Absolute 2019"]
[Site "Portimao"]
[Date "2019.09.10"]
[Round "3.5"]
[White "Leite, Marta Sofia Carvalho"]
[Black "Cymbron, Victoria"]
[Result "1-0"]
[ECO "C62"]
[WhiteElo "1722"]
[BlackElo "1069"]
[Annotator "NA RC"]
[PlyCount "113"]
[EventDate "2019.09.08"]
[EventType "swiss"]
[EventCountry "POR"]
[SourceTitle "playchess.com"]
[Source "ChessBase"]
[SourceQuality "1"]
[TimeControl "5400+30"]

1. e4 {[%emt 0:00:00]} e5 {[%emt 0:00:00]} 2. Nf3 {[%emt 0:00:00]} Nc6 {[%emt 0:00:06]} 3. Bb5 {[%emt 0:00:00]} d6 {[%emt 0:01:20]} 4. d3 {[%emt 0:00:43]} h6 {[%emt 0:01:11]} 5. Be3 {[%emt 0:02:34]} Be6 {[%emt 0:03:11]} 6. Nbd2 {[%emt 0:05:51]} Nf6 {[%emt 0:03:23]} 7. O-O {[%emt 0:02:29]} Be7 {[%emt 0:01:07]} 8. c3 {[%emt 0:12:25]} a6 {[%emt 0:05:57]} 9. Ba4 {[%emt 0:01:10]} O-O {[%emt 0:02:50]} 10. d4 {[%emt 0:06:15]} exd4 {[%emt 0:04:19]} 11. cxd4 {[%emt 0:00:12]} Bg4 {[%emt 0:05:58]} 12. Rc1 {[%emt 0:04:31]} Na7 {[%emt 0:09:51]} 13. d5 {[%emt 0:17:54]} Nb5 {[%emt 0:07:30]} 14. Qe2 {[%emt 0:10:17]} Bxf3 {[%emt 0:02:00]} 15. Qxf3 {[%emt 0:01:03]} Rc8 {[%emt 0:02:24]} 16. Qg3 {[%emt 0:20:39]} Kh8 {[%emt 0:01:52]} 17. Bd1 {[%emt 0:03:00]} Qd7 {[%emt 0:04:24]} 18. a4 {[%emt 0:00:47]} Na7 {[%emt 0:02:03]} 19. Bxa7 {[%emt 0:00:05]} b6 {[%emt 0:00:32]} 20. a5 {[%emt 0:00:15]} Qb5 {[%emt 0:01:42]} 21. Qa3 {[%emt 0:05:32]} Rfd8 {[%emt 0:08:05]} 22. f3 {[%emt 0:03:45]} Nd7 {[%emt 0:04:32]} 23. Ba4 {[%emt 0:00:51]} Qxa5 {[%emt 0:01:28]} 24. Bxd7 {[%emt 0:00:06]} Qxa3 {[%emt 0:00:30]} 25. bxa3 {[%emt 0:00:06]} Rxd7 {[%emt 0:00:41]} 26. Bxb6 {[%emt 0:00:06]} Bg5 {[%emt 0:02:59]} 27. f4 {[%emt 0:00:20]} Bf6 {[%emt 0:00:19]} 28. Rc2 {[%emt 0:00:39]} Re7 {[%emt 0:01:59]} 29. Rfc1 {[%emt 0:00:16]} g5 {[%emt 0:01:13]} 30. Bxc7 {[%emt 0:00:43]} Bd4+ {[%emt 0:01:44]} 31. Kf1 {[%emt 0:00:42]} Be3 {[%emt 0:00:51]} 32. Bxd6 {[%emt 0:00:10]} Rxc2 {[%emt 0:01:06]} 33. Rxc2 {[%emt 0:00:05]} Rd7 {[%emt 0:00:50]} 34. Be5+ {[%emt 0:00:08]} Kh7 {[%emt 0:00:24]} 35. fxg5 {[%emt 0:00:06]} Bxg5 {[%emt 0:01:04]} 36. d6 {[%emt 0:00:16]} Kg6 {[%emt 0:00:46]} 37. Nc4 {[%emt 0:00:33]} f6 {[%emt 0:00:34]} 38. Bg3 {[%emt 0:00:09]} h5 {[%emt 0:00:40]} 39. Nb6 {[%emt 0:00:12]} Rb7 {[%emt 0:00:30]} 40. d7 {[%emt 0:00:51]} f5 {[%emt 0:00:30]} 41. exf5+ {[%emt 0:00:17]} Kxf5 {[%emt 0:00:24]} 42. Bc7 {[%emt 0:00:02]} Ke6 {[%emt 0:01:17]} 43. d8=Q {[%emt 0:00:38]} Bxd8 {[%emt 0:00:20]} 44. Bxd8 {[%emt 0:00:06]} Rf7+ {[%emt 0:00:43]} 45. Ke2 {[%emt 0:00:44]} Ke5 {[%emt 0:00:37]} 46. Rc5+ {[%emt 0:00:18]} Kd6 {[%emt 0:00:25]} 47. Rxh5 {[%emt 0:00:30]} Kc6 {[%emt 0:00:44]} 48. Nc4 {[%emt 0:01:29]} Kd7 {[%emt 0:00:32]} 49. Ne5+ {[%emt 0:00:30]} Kxd8 {[%emt 0:00:38]} 50. Nxf7+ {[%emt 0:00:12]} Kc7 {[%emt 0:00:19]} 51. Rh6 {[%emt 0:00:35]} Kb7 {[%emt 0:00:18]} 52. g4 {[%emt 0:00:28]} a5 {[%emt 0:00:13]} 53. g5 {[%emt 0:00:08]} Kc7 {[%emt 0:00:04]} 54. g6 {[%emt 0:00:09]} Kd7 {[%emt 0:02:22]} 55. g7 {[%emt 0:00:06]} Ke7 {[%emt 0:00:17]} 56. g8=Q {[%emt 0:00:12]} Kd7 {[%emt 0:00:05]} 57. Qd8# {[%emt 0:00:56]} 1-0

[Event "POR-ch Women Absolute 2019"]
[Site "Portimao"]
[Date "2019.09.10"]
[Round "4.1"]
[White "Silva, Mariana Sofia T."]
[Black "Soares, Sara Joana De Moura "]
[Result "1-0"]
[ECO "C45"]
[WhiteElo "1882"]
[BlackElo "1533"]
[Annotator "NA"]
[PlyCount "51"]
[EventDate "2019.09.08"]
[EventType "swiss"]
[EventCountry "POR"]
[SourceTitle "playchess.com"]
[Source "ChessBase"]
[SourceQuality "1"]
[TimeControl "5400+30"]

1. e4 {[%emt 0:00:00]} e5 {[%emt 0:01:09]} 2. Nf3 {[%emt 0:00:00]} Nc6 {[%emt 0:00:05]} 3. d4 {[%emt 0:00:11]} exd4 {[%emt 0:00:10]} 4. Nxd4 {[%emt 0:00:08]} Bc5 {[%emt 0:00:05]} 5. Nxc6 {[%emt 0:00:20]} Qf6 {[%emt 0:00:12]} 6. Qf3 {[%emt 0:00:11]} Qxc6 {[%emt 0:00:41]} 7. Nc3 {[%emt 0:00:53]} Nf6 {[%emt 0:04:35]} 8. Bb5 {[%emt 0:06:00]} Qe6 {[%emt 0:06:36]} 9. O-O {[%emt 0:01:46]} O-O {[%emt 0:01:30]} 10. Bf4 {[%emt 0:13:55]} d6 {[%emt 0:01:03]} 11. h3 {[%emt 0:03:45]} Bd7 {[%emt 0:03:42]} 12. Bd3 {[%emt 0:00:58]} Bc6 {[%emt 0:01:17]} 13. Rfe1 {[%emt 0:04:50]} Rfe8 {[%emt 0:01:47]} 14. Re2 {[%emt 0:08:16]} Bd4 {[%emt 0:10:38]} 15. Bd2 {[%emt 0:30:33]} a6 {[%emt 0:08:50]} 16. Rae1 {[%emt 0:00:57]} Qd7 {[%emt 0:13:06]} 17. b3 {[%emt 0:07:35]} b5 {[%emt 0:07:12]} 18. Nd5 {[%emt 0:01:05]} a5 {[%emt 0:05:11]} 19. c3 {[%emt 0:01:03]} Be5 {[%emt 0:02:01]} 20. Bb1 {[%emt 0:01:22]} Bb7 {[%emt 0:03:45]} 21. Bg5 {[%emt 0:01:55]} Re6 {[%emt 0:01:51]} 22. Qd3 {[%emt 0:01:22]} h6 {[%emt 0:01:22]} 23. Bxf6 {[%emt 0:03:46]} Bxf6 {[%emt 0:00:09]} 24. e5 {[%emt 0:00:36]} Bxe5 {[%emt 0:03:53]} 25. Qh7+ {[%emt 0:00:16]} Kf8 {[%emt 0:00:01]} 26. Qh8# 1-0

[Event "POR-ch Women Absolute 2019"]
[Site "Portimao"]
[Date "2019.09.10"]
[Round "4.2"]
[White "Monteiro, Sara Cristina da Sil"]
[Black "Silva, Ana Ines Teixeira Da"]
[Result "0-1"]
[ECO "D03"]
[WhiteElo "1728"]
[BlackElo "1738"]
[Annotator "NA RC"]
[PlyCount "56"]
[EventDate "2019.09.08"]
[EventType "swiss"]
[EventCountry "POR"]
[SourceTitle "playchess.com"]
[Source "ChessBase"]
[SourceQuality "1"]
[TimeControl "5400+30"]

1. d4 {[%emt 0:00:00]} Nf6 {[%emt 0:00:00]} 2. Bg5 {[%emt 0:00:22]} d5 {[%emt 0:00:00]} 3. Nf3 {[%emt 0:00:22]} c5 {[%emt 0:01:06]} 4. e3 {[%emt 0:00:36]} Nc6 {[%emt 0:03:58]} 5. Be2 {[%emt 0:04:00]} Ne4 {[%emt 0:08:20]} 6. Bf4 {[%emt 0:02:29]} Qb6 {[%emt 0:08:04]} 7. b3 {[%emt 0:33:21]} Qb4+ {[%emt 0:09:03]} 8. Kf1 {[%emt 0:04:16]} cxd4 {[%emt 0:09:01]} 9. Nxd4 {[%emt 0:04:39]} Nxd4 {[%emt 0:07:52]} 10. Qxd4 {[%emt 0:04:18]} Qxd4 {[%emt 0:01:38]} 11. exd4 {[%emt 0:00:09]} Bf5 {[%emt 0:10:02]} 12. Bb5+ {[%emt 0:07:13]} Kd8 {[%emt 0:00:53]} 13. Bd3 {[%emt 0:11:01]} Rc8 {[%emt 0:07:16]} 14. f3 {[%emt 0:02:52]} Nd6 {[%emt 0:00:09]} 15. Ke2 {[%emt 0:00:37]} Bxd3+ {[%emt 0:02:16]} 16. Kxd3 {[%emt 0:00:22]} e6 {[%emt 0:00:37]} 17. Nd2 {[%emt 0:01:14]} b5 {[%emt 0:03:15]} 18. a4 {[%emt 0:02:49]} b4 {[%emt 0:00:24]} 19. Rhc1 {[%emt 0:02:28]} Rc3+ {[%emt 0:00:48]} 20. Ke2 {[%emt 0:00:24]} Nf5 {[%emt 0:02:27]} 21. Kd1 {[%emt 0:06:58]} f6 {[%emt 0:03:11]} 22. Nb1 {[%emt 0:06:56]} Rc8 {[%emt 0:00:50]} 23. Kd2 {[%emt 0:01:21]} Nxd4 {[%emt 0:00:29]} 24. Be3 {[%emt 0:00:03]} Bc5 {[%emt 0:00:29]} 25. Kd3 {[%emt 0:01:20]} e5 {[%emt 0:02:12]} 26. Nd2 {[%emt 0:00:47]} Ne6 {[%emt 0:01:31]} 27. c4 {[%emt 0:01:32]} bxc3 {[%emt 0:00:52]} 28. Bxc5 {[%emt 0:00:38]} cxd2 {[%emt 0:01:32]} 0-1

[Event "POR-ch Women Absolute 2019"]
[Site "Portimao"]
[Date "2019.09.10"]
[Round "4.3"]
[White "Avelino, Camila Biscaya"]
[Black "Jorge, Rita Maria Osorio"]
[Result "1-0"]
[ECO "C70"]
[WhiteElo "1722"]
[BlackElo "1957"]
[Annotator "NA RC"]
[PlyCount "141"]
[EventDate "2019.09.08"]
[EventType "swiss"]
[EventCountry "POR"]
[SourceTitle "playchess.com"]
[Source "ChessBase"]
[SourceQuality "1"]
[TimeControl "5400+30"]

1. e4 {[%emt 0:00:00]} e5 {[%emt 0:00:00]} 2. Nf3 {[%emt 0:00:15]} Nc6 {[%emt 0:00:00]} 3. Bb5 {[%emt 0:00:23]} a6 {[%emt 0:00:00]} 4. Ba4 {[%emt 0:00:29]} g6 {[%emt 0:00:09]} 5. O-O {[%emt 0:01:04]} Bg7 {[%emt 0:02:00]} 6. Re1 {[%emt 0:03:12]} Nge7 {[%emt 0:05:17]} 7. c3 {[%emt 0:03:13]} d6 {[%emt 0:00:12]} 8. h3 {[%emt 0:02:52]} Bd7 {[%emt 0:00:25]} 9. d4 {[%emt 0:02:30]} O-O {[%emt 0:00:32]} 10. Be3 {[%emt 0:13:14]} h6 {[%emt 0:01:51]} 11. Nbd2 {[%emt 0:06:46]} Kh8 {[%emt 0:02:05]} 12. dxe5 {[%emt 0:07:10]} dxe5 {[%emt 0:04:18]} 13. Nf1 {[%emt 0:00:56]} Qe8 {[%emt 0:09:39]} 14. Qd2 {[%emt 0:04:08]} g5 {[%emt 0:07:15]} 15. Rad1 {[%emt 0:02:59]} Rd8 {[%emt 0:01:31]} 16. Qe2 {[%emt 0:01:22]} Ng6 {[%emt 0:01:36]} 17. Bb3 {[%emt 0:06:37]} Nf4 {[%emt 0:04:34]} 18. Bxf4 {[%emt 0:00:55]} gxf4 {[%emt 0:00:34]} 19. Nh4 {[%emt 0:07:28]} Na5 {[%emt 0:08:11]} 20. Bc2 {[%emt 0:02:40]} Qe6 {[%emt 0:06:17]} 21. b4 {[%emt 0:05:28]} Nc6 {[%emt 0:01:29]} 22. Bb3 {[%emt 0:03:04]} Qf6 {[%emt 0:00:43]} 23. Qh5 {[%emt 0:02:09]} Ne7 {[%emt 0:06:09]} 24. Nh2 {[%emt 0:03:30]} Ng6 {[%emt 0:19:01]} 25. Nf5 {[%emt 0:01:12]} Bxf5 {[%emt 0:11:20]} 26. Rxd8 {[%emt 0:02:09]} Rxd8 {[%emt 0:00:39]} 27. exf5 {[%emt 0:00:46]} Ne7 {[%emt 0:00:50]} 28. Ng4 {[%emt 0:02:55]} Qxf5 {[%emt 0:02:34]} 29. Qxf5 {[%emt 0:00:20]} Nxf5 {[%emt 0:00:04]} 30. Nxe5 {[%emt 0:00:09]} Nd6 {[%emt 0:00:55]} 31. c4 {[%emt 0:01:24]} Kg8 {[%emt 0:04:09]} 32. c5 {[%emt 0:01:31]} Nb5 {[%emt 0:00:32]} 33. Nxf7 {[%emt 0:01:49]} Rd4 {[%emt 0:00:34]} 34. Nxh6+ {[%emt 0:01:34]} Kf8 {[%emt 0:00:05]} 35. Nf5 {[%emt 0:00:53]} Rxb4 {[%emt 0:00:14]} 36. Re7 {[%emt 0:03:56]} Bd4 {[%emt 0:00:33]} 37. Rf7+ {[%emt 0:03:14]} Ke8 {[%emt 0:00:03]} 38. Ng7+ {[%emt 0:00:29]} Kd8 {[%emt 0:00:53]} 39. Ne6+ {[%emt 0:00:40]} Ke8 {[%emt 0:00:58]} 40. Nxc7+ {[%emt 0:01:26]} Nxc7 {[%emt 0:00:07]} 41. Rxc7 {[%emt 0:00:11]} Be5 {[%emt 0:00:27]} 42. Rh7 {[%emt 0:00:28]} a5 {[%emt 0:00:37]} 43. Kf1 {[%emt 0:01:43]} a4 {[%emt 0:00:22]} 44. Bd5 {[%emt 0:00:52]} Bd4 {[%emt 0:00:42]} 45. Rxb7 {[%emt 0:00:36]} Bxc5 {[%emt 0:00:46]} 46. Rxb4 {[%emt 0:00:10]} Bxb4 {[%emt 0:00:02]} 47. Bc6+ {[%emt 0:00:06]} Ke7 {[%emt 0:00:00]} 48. Bxa4 {[%emt 0:00:10]} Kf6 {[%emt 0:00:04]} 49. Ke2 {[%emt 0:00:35]} Kg5 {[%emt 0:00:07]} 50. Kf3 {[%emt 0:00:05]} Bd6 {[%emt 0:00:02]} 51. g3 {[%emt 0:00:20]} fxg3 {[%emt 0:02:08]} 52. fxg3 {[%emt 0:00:05]} Bc7 {[%emt 0:00:16]} 53. Bd7 {[%emt 0:00:28]} Kh5 {[%emt 0:00:14]} 54. h4 {[%emt 0:01:50]} Bb8 {[%emt 0:00:56]} 55. Be8+ {[%emt 0:00:11]} Kh6 {[%emt 0:00:04]} 56. g4 {[%emt 0:00:19]} Be5 {[%emt 0:00:21]} 57. g5+ {[%emt 0:00:35]} Kg7 {[%emt 0:00:06]} 58. h5 {[%emt 0:00:17]} Bc3 {[%emt 0:00:36]} 59. Kg4 {[%emt 0:00:23]} Kf8 {[%emt 0:00:16]} 60. Bb5 {[%emt 0:00:20]} Kg7 {[%emt 0:00:03]} 61. Kf5 {[%emt 0:00:23]} Kh7 {[%emt 0:00:07]} 62. Ke6 {[%emt 0:01:31]} Bd2 {[%emt 0:00:44]} 63. Kf6 {[%emt 0:00:46]} Bc3+ {[%emt 0:00:02]} 64. Kf7 {[%emt 0:00:19]} Bb2 {[%emt 0:00:11]} 65. Bd3+ {[%emt 0:00:22]} Kh8 {[%emt 0:00:04]} 66. g6 {[%emt 0:01:06]} Bg7 {[%emt 0:00:21]} 67. a4 {[%emt 0:00:04]} Bh6 {[%emt 0:02:14]} 68. a5 {[%emt 0:00:06]} Bg7 {[%emt 0:00:34]} 69. a6 {[%emt 0:00:05]} Bh6 {[%emt 0:00:14]} 70. a7 {[%emt 0:00:06]} Bf8 {[%emt 0:00:17]} 71. g7+ {[%emt 0:00:06]} 1-0

[Event "POR-ch Women Absolute 2019"]
[Site "Portimao"]
[Date "2019.09.10"]
[Round "4.5"]
[White "Cymbron, Victoria"]
[Black "Duque, Raquel Dos Santos"]
[Result "0-1"]
[ECO "C46"]
[WhiteElo "1069"]
[BlackElo "1415"]
[Annotator "NA RC"]
[PlyCount "118"]
[EventDate "2019.09.08"]
[EventType "swiss"]
[EventCountry "POR"]
[SourceTitle "playchess.com"]
[Source "ChessBase"]
[SourceQuality "1"]
[TimeControl "5400+30"]

1. e4 {[%emt 0:00:00]} e5 {[%emt 0:00:00]} 2. Nf3 {[%emt 0:00:00]} Nc6 {[%emt 0:00:00]} 3. Nc3 {[%emt 0:00:09]} Bc5 {[%emt 0:00:08]} 4. Nxe5 {[%emt 0:00:45]} Bxf2+ {[%emt 0:02:08]} 5. Kxf2 {[%emt 0:00:22]} Nxe5 {[%emt 0:00:07]} 6. Be2 {[%emt 0:07:05]} Nf6 {[%emt 0:03:06]} 7. d4 {[%emt 0:01:31]} Ng6 {[%emt 0:08:17]} 8. e5 {[%emt 0:02:36]} Ng8 {[%emt 0:00:44]} 9. Rf1 {[%emt 0:04:26]} N8e7 {[%emt 0:01:17]} 10. Kg1 {[%emt 0:07:56]} O-O {[%emt 0:01:03]} 11. Bc4 {[%emt 0:17:26]} d6 {[%emt 0:02:50]} 12. exd6 {[%emt 0:03:45]} Qxd6 {[%emt 0:00:38]} 13. Be3 {[%emt 0:14:21]} Nf5 {[%emt 0:17:48]} 14. Qd2 {[%emt 0:03:41]} c6 {[%emt 0:04:55]} 15. Rad1 {[%emt 0:08:13]} Be6 {[%emt 0:04:12]} 16. Bxe6 {[%emt 0:01:43]} Qxe6 {[%emt 0:00:24]} 17. Rde1 {[%emt 0:03:33]} Qd7 {[%emt 0:01:45]} 18. a3 {[%emt 0:10:19]} Nge7 {[%emt 0:01:49]} 19. Ne4 {[%emt 0:07:42]} b6 {[%emt 0:02:50]} 20. c4 {[%emt 0:02:08]} Rad8 {[%emt 0:01:03]} 21. Rd1 {[%emt 0:00:25]} h6 {[%emt 0:01:00]} 22. Nc3 {[%emt 0:00:14]} Rfe8 {[%emt 0:01:20]} 23. Rfe1 {[%emt 0:00:30]} Nxe3 {[%emt 0:01:04]} 24. Rxe3 {[%emt 0:00:32]} Nf5 {[%emt 0:00:33]} 25. Rxe8+ {[%emt 0:00:14]} Qxe8 {[%emt 0:00:22]} 26. d5 {[%emt 0:00:46]} Qe3+ {[%emt 0:01:03]} 27. Qxe3 Nxe3 {[%emt 0:00:16]} 28. Rd4 {[%emt 0:01:42]} a6 {[%emt 0:01:56]} 29. d6 {[%emt 0:01:06]} c5 {[%emt 0:00:26]} 30. Re4 {[%emt 0:00:35]} Nf5 {[%emt 0:00:11]} 31. Na4 {[%emt 0:00:42]} Rxd6 {[%emt 0:00:38]} 32. Kf2 {[%emt 0:00:33]} Kf8 {[%emt 0:00:47]} 33. g4 {[%emt 0:00:19]} Nd4 {[%emt 0:00:35]} 34. b4 {[%emt 0:00:34]} cxb4 {[%emt 0:00:53]} 35. axb4 {[%emt 0:00:10]} Rf6+ {[%emt 0:00:49]} 36. Kg3 {[%emt 0:00:20]} Nb3 {[%emt 0:01:13]} 37. c5 {[%emt 0:00:48]} bxc5 {[%emt 0:00:37]} 38. Nxc5 {[%emt 0:00:07]} Nxc5 {[%emt 0:00:39]} 39. bxc5 {[%emt 0:00:07]} Rc6 {[%emt 0:00:06]} 40. Rc4 {[%emt 0:00:36]} Ke7 {[%emt 0:00:05]} 41. Kf3 {[%emt 0:00:24]} Ke6 {[%emt 0:00:11]} 42. Ra4 {[%emt 0:00:54]} Kd5 {[%emt 0:00:18]} 43. Rf4 {[%emt 0:00:40]} Kxc5 {[%emt 0:01:11]} 44. Rxf7 {[%emt 0:00:14]} Rf6+ {[%emt 0:00:16]} 45. Rxf6 {[%emt 0:00:39]} gxf6 {[%emt 0:00:03]} 46. Kf4 {[%emt 0:00:06]} Kd6 {[%emt 0:01:10]} 47. Kf5 {[%emt 0:00:12]} Ke7 {[%emt 0:00:08]} 48. Kg6 {[%emt 0:00:15]} a5 {[%emt 0:00:05]} 49. h4 {[%emt 0:00:10]} a4 {[%emt 0:00:09]} 50. Kxh6 {[%emt 0:00:08]} Kf7 {[%emt 0:00:23]} 51. Kh7 {[%emt 0:00:22]} a3 {[%emt 0:02:04]} 52. g5 {[%emt 0:00:08]} fxg5 {[%emt 0:00:05]} 53. hxg5 {[%emt 0:00:17]} a2 {[%emt 0:00:05]} 54. g6+ {[%emt 0:00:10]} Kf6 {[%emt 0:00:10]} 55. g7 {[%emt 0:00:26]} a1=Q {[%emt 0:00:09]} 56. Kh8 {[%emt 0:00:43]} Qh1+ {[%emt 0:00:11]} 57. Kg8 {[%emt 0:00:20]} Qg2 {[%emt 0:00:10]} 58. Kf8 {[%emt 0:00:21]} Qxg7+ {[%emt 0:00:11]} 59. Ke8 {[%emt 0:00:13]} Qe7# {[%emt 0:00:09]} 0-1

[Event "POR-ch Women Absolute 2019"]
[Site "Portimao"]
[Date "2019.09.11"]
[Round "5"]
[White "Pipiras, Filipa Fortuna"]
[Black "Silva, Mariana Sofia"]
[Result "1-0"]
[ECO "A57"]
[WhiteElo "1965"]
[BlackElo "1882"]
[Annotator "NA"]
[PlyCount "115"]
[EventDate "2019.??.??"]
[EventCountry "POR"]
[SourceTitle "playchess.com"]
[Source "ChessBase"]
[SourceQuality "1"]
[TimeControl "5400+30"]

1. d4 Nf6 2. c4 c5 3. d5 b5 4. Qc2 bxc4 5. e4 d6 6. Bxc4 g6 7. Nf3 Bg7 8. O-O O-O 9. Nc3 Ba6 10. Nb5 Qb6 11. a4 Nbd7 12. Qe2 Bxb5 13. Bxb5 a6 14. Bc6 Ra7 15. h3 Nb8 16. a5 Qc7 17. Ba4 Qxa5 18. Bd2 Qc7 19. Rac1 Qb6 20. b4 Nbd7 21. Rb1 Qd8 22. Rfc1 Nb6 23. Bc2 cxb4 24. Nd4 Ra8 25. Bxb4 Bh6 26. Rd1 Nfd7 27. Nc6 Qe8 28. Ba5 Nc8 29. Bb4 Ncb6 30. Bd3 Nb8 31. Ba5 Nxc6 32. dxc6 Na4 33. Bc4 Nc5 34. e5 Rb8 35. Rxb8 Qxb8 36. exd6 exd6 37. c7 Qa7 38. Rxd6 Nb7 39. Rxa6 Qc5 40. Bb6 Qf5 41. Bd3 Qd7 42. Ra7 Nd6 43. Bc5 Re8 44. Qf3 Nc8 45. Rb7 Qe6 46. g3 Qxh3 47. Bf1 Qe6 48. Bb5 Qe1+ 49. Kg2 Re5 50. Bc4 Rf5 51. Qg4 Qe5 52. Bd4 Qd6 53. Bd3 Qd5+ 54. Be4 Qxd4 55. Bxf5 Qd5+ 56. Be4 Qe5 57. Qxc8+ Kg7 58. Qg4 1-0

[Event "POR-ch Women Absolute 2019"]
[Site "Portimao"]
[Date "2019.09.11"]
[Round "5"]
[White "Jorge, Rita Maria Osorio"]
[Black "Leite, Marta Sofia Carvalho"]
[Result "1/2-1/2"]
[ECO "B01"]
[WhiteElo "1957"]
[BlackElo "1722"]
[Annotator "NA"]
[PlyCount "129"]
[EventDate "2019.??.??"]
[EventCountry "POR"]
[SourceTitle "playchess.com"]
[Source "ChessBase"]
[SourceQuality "1"]
[TimeControl "5400+30"]

1. e4 d5 2. exd5 Qxd5 3. Nc3 Qa5 4. d4 Nf6 5. a3 Bg4 6. f3 Bf5 7. Bd3 Bxd3 8. Qxd3 Nc6 9. Nge2 O-O-O 10. O-O Kb8 11. Be3 g6 12. b4 Qf5 13. Ne4 Bg7 14. N2g3 Qd5 15. c4 Ne5 16. cxd5 Nxd3 17. Nxf6 Bxf6 18. Rab1 e5 19. dxe6 Bxd4 20. Bxd4 Rxd4 21. exf7 Ne5 22. Rfe1 Nxf7 23. Re7 Nd6 24. Rb3 Kc8 25. Ne2 Rd2 26. Nf4 Nf5 27. Re4 Rhd8 28. Kf1 g5 29. Nh5 Rd1+ 30. Re1 R1d2 31. Re5 Rd1+ 32. Re1 R1d2 33. Nf6 Nh4 34. Re2 Rxe2 35. Kxe2 Nxg2 36. Nxh7 Nf4+ 37. Ke3 Re8+ 38. Kd4 Ne6+ 39. Kc4 Rh8 40. Nf6 Rxh2 41. Re3 Nd8 42. Nd5 c6 43. Ne7+ Kd7 44. Ng8 Rh4+ 45. Kd3 Rf4 46. Ne7 Rf6 47. Ng8 Rg6 48. Ne7 Re6 49. Nf5 Rxe3+ 50. Kxe3 Ke6 51. Ke4 Nf7 52. Nd4+ Kf6 53. Nf5 Ne5 54. Nd6 b5 55. Nc8 a6 56. Nd6 Ke6 57. Nb7 Nc4 58. Nc5+ Kf6 59. Nxa6 Nd2+ 60. Ke3 Nc4+ 61. Ke4 Nd2+ 62. Ke3 Nc4+ 63. Ke4 Nxa3 64. Nb8 c5 65. bxc5 {Ke5} 1/2-1/2

[Event "POR-ch Women Absolute 2019"]
[Site "Portimao"]
[Date "2019.09.11"]
[Round "5"]
[White "Silva, Ana Ines Teixeira Da"]
[Black "Avelino, Camila Biscaya"]
[Result "1/2-1/2"]
[ECO "C47"]
[WhiteElo "1738"]
[BlackElo "1722"]
[Annotator "NA"]
[PlyCount "55"]
[EventDate "2019.??.??"]
[EventCountry "POR"]
[SourceTitle "playchess.com"]
[Source "ChessBase"]
[SourceQuality "1"]
[TimeControl "5400+30"]

1. e4 e5 2. Nf3 Nc6 3. d4 exd4 4. Nxd4 Nf6 5. Nc3 Bb4 6. Nxc6 bxc6 7. Bd3 d5 8. exd5 cxd5 9. O-O O-O 10. h3 Rb8 11. Bf4 Bd6 12. Bxd6 Qxd6 13. b3 Be6 14. Ne2 Rfd8 15. Nd4 c5 16. Nxe6 fxe6 17. c4 d4 18. Re1 Re8 19. Qf3 e5 20. g4 Rf8 21. Qg3 Rbe8 22. Re2 Qc6 23. Rxe5 Rxe5 24. Qxe5 Qf3 25. Bf5 Nh5 26. Bxh7+ Kh8 27. Qxh5 Qxf2+ 28. Kh1 1/2-1/2

[Event "POR-ch Women Absolute 2019"]
[Site "Portimao"]
[Date "2019.09.11"]
[Round "5"]
[White "Soares, Sara Joana De Moura "]
[Black "Monteiro, Sara Cristina da Sil"]
[Result "1-0"]
[ECO "A52"]
[WhiteElo "1533"]
[BlackElo "1728"]
[Annotator "NA"]
[PlyCount "65"]
[EventDate "2019.??.??"]
[EventCountry "POR"]
[SourceTitle "playchess.com"]
[Source "ChessBase"]
[SourceQuality "1"]
[TimeControl "5400+30"]

1. d4 Nf6 2. c4 e5 3. dxe5 Ng4 4. Bf4 Nc6 5. Nf3 Bc5 6. e3 Qe7 7. Qd5 Nb4 8. Qd1 Nc6 9. Nc3 Bb4 10. Qd5 d6 11. exd6 cxd6 12. Be2 Be6 13. Qd1 Bxc3+ 14. bxc3 Nge5 15. Nd4 Bxc4 16. Bxc4 Nxc4 17. O-O O-O 18. Nxc6 bxc6 19. Qa4 Ne5 20. Rab1 Qc7 21. Rfd1 Rab8 22. h3 f6 23. Rb3 g5 24. Bg3 Rfd8 25. Rdb1 Rb6 26. h4 h6 27. hxg5 fxg5 28. f4 Nd3 29. Qc4+ d5 30. Qxd3 Kg7 31. Rxb6 axb6 32. Qd4+ Kf7 33. Qxb6 1-0